Cogmind - Beta 14 @@@ ROGUE MODE // 2024.08.08 @ 10:58:18 Player: Hechtic Result: Destroyed by WV-J7A(R) with Subdweller Laser Performance ------------- Evolutions (0) 0 Regions Visited (3) 600 Robots Destroyed (13) 65 Value Destroyed (245) 245 Prototype IDs (2) 40 Alien Tech Used (0) 0 Bonus (0) 0 TOTAL SCORE: 950 Bonus ------- None Cogmind --------- Core Integrity 0/250 Matter 246/300 Energy 249/250 System Corruption 0% Temperature Cool (6) Movement Core (800) Ox15 Location -10/Subcaves Parts ------- > --- POWER (1) -------- Ion Engine > --- PROPULSION (2) --- (None) > --- UTILITY (2) ------ High-capacity Storage Unit > --- WEAPON (2) ------- Light Assault Rifle > --- INVENTORY (20) --- Light Ion Engine Light Treads Light Treads Wheel Compact Wheel Flight Unit Flight Unit Flight Unit Flight Unit Flight Unit Large Storage Unit High-capacity Matter Pod (40) Structural Scanner Sensor Array Signal Interpreter Signal Interpreter Seismic Detector Targeting Computer Assault Rifle Peak State ------------ > --- POWER ------------ Ion Engine > --- PROPULSION ------- Aluminum Leg Aluminum Leg > --- UTILITY ---------- High-capacity Storage Unit ECM Suite > --- WEAPON ----------- Medium Laser Assault Rifle > --- INVENTORY -------- Ion Engine Light Ion Engine Light Treads Light Treads Wheel Compact Wheel Hover Unit Flight Unit Flight Unit Flight Unit Large Storage Unit High-capacity Matter Pod Structural Scanner Sensor Array Signal Interpreter Signal Interpreter Seismic Detector Targeting Computer Medium Laser Assault Rifle [Rating: 9] Favorites ----------- Power Ion Engine Engine Ion Engine Propulsion Aluminum Leg Leg Aluminum Leg Flight Unit Flight Unit Utility High-capacity Storage Unit Device ECM Suite Storage High-capacity Storage Unit Weapon Assault Rifle Energy Gun Medium Laser Ballistic Gun Assault Rifle Build | -11 -10 -10 -10 ------- Run | Yrd Mat Min Sub Slots Evolved . | . . . . Power . | . . . . Propulsion . | . . . . Utility . | . . . . Weapon . | . . . . Parts Attached 19 | 6 11 2 . Power 2 | 1 . 1 . Engine 2 | 1 . 1 . Core . | . . . . Reactor . | . . . . Propulsion 8 | 2 6 . . Treads . | . . . . Leg 6 | 2 4 . . Wheel . | . . . . Hover . | . . . . Flight 2 | . 2 . . Utility 3 | 1 2 . . Device 1 | . 1 . . Storage 2 | 1 1 . . Processor . | . . . . Hackware . | . . . . Protection . | . . . . Artifact . | . . . . Weapon 6 | 2 3 1 . Energy Gun 1 | 1 . . . Energy Cannon . | . . . . Ballistic Gun 5 | 1 3 1 . Ballistic Cannon . | . . . . Launcher . | . . . . Special Weapon . | . . . . Impact Weapon . | . . . . Slashing Weapon . | . . . . Piercing Weapon . | . . . . Special Melee Weapon . | . . . . Unidentified Prototypes . | . . . . Parts Lost 5 | . . 1 4 Power 1 | . . 1 . Propulsion 2 | . . . 2 Utility 1 | . . . 1 Weapon 1 | . . . 1 Highest Loss Streak 4 | . . 1 4 To Critical Strikes . | . . . . Average Slot Usage (%) 89 | . 87 96 86 Engine 13 | . 14 10 14 Leg 27 | . 27 28 21 Device 5 | . 2 14 9 Storage 14 | . 14 14 14 Energy Gun 9 | . 13 . . Ballistic Gun 18 | . 14 28 25 Peak Build Rating 9 | 6 9 9 8 Average Rating 7 | 4 6 8 7 On Entrance 5 | . 6 8 8 Naked Turns . | . . . . Heaviest Build 51 | 14 51 51 50 Greatest Support 20 | 20 20 20 20 Greatest Overweight (x) 4 | . 4 2 4 Average Overweight (x) 1 | . 1 2 2 Largest Inventory Capacity 20 | 8 20 20 20 Average Capacity 19 | 6 19 20 20 Most Carried 20 | 6 20 20 19 Average Carried 15 | 3 13 19 19 Final Capacity 20 | 8 20 20 20 Final Carried 19 | 6 19 19 19 Class Distribution -------------------- 100% | Mutant Dominant Class ---------------- Mutant | -10/Materials Mutant | -10/Mines Mutant | -10/Subcaves Resources | -11 -10 -10 -10 ----------- Run | Yrd Mat Min Sub Matter Collected 497 | 231 182 84 . Remotely . | . . . . Salvage Created 329 | . 188 84 57 Parts 23 | . 8 11 4 Haulers Intercepted . | . . . . Recyclers Shooed . | . . . . Parts Field Recycled . | . . . . Retrieved Matter . | . . . . Parts Self-Destructed . | . . . . Prevented . | . . . . Kills | -11 -10 -10 -10 ------- Run | Yrd Mat Min Sub Combat Hostiles Destroyed 13 | . 6 6 1 Guns 13 | . 6 6 1 Classes Destroyed 3 | . 2 . 1 Swarmer 9 | . 3 6 . Grunt 3 | . 3 . . Subdweller 1 | . . . 1 Best Kill Streak 3 | . 3 3 1 Combat Bots Only 3 | . 3 3 1 Max Kills in Single Turn 1 | . 1 1 1 Gunslinging . | . . . . Exploded . | . . . . Melee . | . . . . Uniques/NPCs Destroyed . | . . . . Combat | -11 -10 -10 -10 -------- Run | Yrd Mat Min Sub Hostile Shots Fired 80 | . 32 16 32 Missed 21 | . 8 5 8 Damage Taken 852 | . 262 93 497 Core 266 | . 46 16 204 Absorbed by Shields . | . . . . Core Remaining (%) 100 | 100 . . . Volleys Fired 55 | . 20 9 26 Largest 2 | . 2 2 2 Hottest 70 | . 70 40 40 Shots Fired 92 | . 40 18 34 Gun 92 | . 40 18 34 Cannon . | . . . . Launcher . | . . . . Special . | . . . . Kinetic 72 | . 20 18 34 Thermal 20 | . 20 . . Explosive . | . . . . Electromagnetic . | . . . . Robot Hit Streak 11 | . 11 3 10 Robot Miss Streak 4 | . 4 4 1 Penetration Max . | . . . . Secondary Targets 1 | . . . 1 Max Gunslinging Chain 1 | . . . 1 Shots Hit Robots 62 | . 25 7 30 Core Hits 22 | . 11 6 5 Critical Kills . | . . . . Critical Parts Destroyed . | . . . . Critical Strikes 2 | . 2 . . Burn 2 | . 2 . . Melee Attacks . | . . . . Impact . | . . . . Slashing . | . . . . Piercing . | . . . . Sneak Attacks . | . . . . Combat Hostiles . | . . . . Follow-up Attacks . | . . . . Damage Inflicted 686 | 3 325 85 273 Guns 683 | . 325 85 273 Cannons . | . . . . Explosions . | . . . . Melee . | . . . . Ramming 3 | 3 . . . Kinetic 521 | . 163 85 273 Thermal 162 | . 162 . . Explosive . | . . . . Electromagnetic . | . . . . Impact . | . . . . Slashing . | . . . . Piercing . | . . . . Highest Corruption . | . . . . Average Corruption . | . . . . Corruption Purged . | . . . . Corruption Blocked . | . . . . Overload Shots . | . . . . Overflow Damage . | . . . . Projectiles . | . . . . Explosions . | . . . . Melee . | . . . . Knockbacks . | . . . . Impact . | . . . . Kinetic . | . . . . Secondary . | . . . . Self-Inflicted Damage . | . . . . Shots . | . . . . Rammed . | . . . . Targets Rammed 1 | 1 . . . Kicked 1 | 1 . . . Crushed . | . . . . Highest Temperature 63 | . 63 . . Average Temperature 23 | . 23 . . Received Heat Transfer 237 | . 93 . 144 Siege Activations . | . . . . Robots Corrupted . | . . . . Combat Hostiles . | . . . . Parts Fried . | . . . . Impact Corruptions . | . . . . Robots Melted . | . . . . Combat Hostiles . | . . . . Parts Melted 5 | . 5 . . Heat Transferred 629 | . 629 . . Parts Sabotaged . | . . . . Parts Stolen . | . . . . Parts Stripped . | . . . . Power Chain Reactions . | . . . . Alert | -11 -10 -10 -10 ------- Run | Yrd Mat Min Sub Peak Influence 95 | . 95 90 . Initial . | . . . . Average 20 | . 15 34 . Maximum Alert Level . | . . . . Low Security (%) 100 | 100 100 100 . Level 1 . | . . . . Level 2 . | . . . . Level 3 . | . . . . Level 4 . | . . . . Level 5 . | . . . . High Security . | . . . . Max Security . | . . . . Squads Dispatched . | . . . . Investigation . | . . . . Extermination . | . . . . Reinforcement . | . . . . Assault . | . . . . Garrison . | . . . . Intercept . | . . . . Searches Triggered . | . . . . Construction Impeded . | . . . . Haulers Reinforced . | . . . . Active Scanning Responses . | . . . . Cargo Convoy Interrupts . | . . . . Stealth | -11 -10 -10 -10 --------- Run | Yrd Mat Min Sub Distress Signals . | . . . . Communications Jammed . | . . . . Distress Signals . | . . . . Times Spotted 24 | . 15 7 2 Peak Tracking Total 3 | . 3 3 2 Tactical Retreats 1 | . . 1 . Traps | -11 -10 -10 -10 ------- Run | Yrd Mat Min Sub Traps Triggered 1 | . 1 . . Indirectly . | . . . . Trap Hack Attempts . | . . . . Triggered . | . . . . Disarmed . | . . . . Reprogrammed . | . . . . Reused . | . . . . Traps Extracted . | . . . . Installed . | . . . . Triggered . | . . . . Machines | -11 -10 -10 -10 ---------- Run | Yrd Mat Min Sub Machines Disabled . | . . . . Max in Single Turn . | . . . . Machines Repaired . | . . . . Machines Dismantled . | . . . . Machines Sabotaged . | . . . . Overloaded Fab Kills . | . . . . Hacking | -11 -10 -10 -10 --------- Run | Yrd Mat Min Sub Machines Accessed 5 | . 5 . . Terminals 4 | . 4 . . Fabricators . | . . . . Repair Stations . | . . . . Recycling Units 1 | . 1 . . Scanalyzers . | . . . . Garrison Access . | . . . . Total Hacks 13 | . 13 . . Successful 7 | . 7 . . Failed 6 | . 6 . . Catastrophic . | . . . . Database Lockouts . | . . . . Manual . | . . . . Terminals 10 | . 10 . . Fabricators . | . . . . Repair Stations . | . . . . Recycling Units 3 | . 3 . . Scanalyzers . | . . . . Garrison Access . | . . . . Terminal Hacks 5 | . 5 . . Prototype ID Bank 1 | . 1 . . Branch Access Points 1 | . 1 . . Emergency Access Points 2 | . 2 . . Zone Layout 1 | . 1 . . Fabricator Hacks . | . . . . Repair Station Hacks . | . . . . Recycling Unit Hacks 2 | . 2 . . Report Inventory 1 | . 1 . . Retrieve Components 1 | . 1 . . Scanalyzer . | . . . . Garrison Access Hacks . | . . . . Unauthorized Hacks . | . . . . Terminals . | . . . . Fabricators . | . . . . Repair Stations . | . . . . Recycling Units . | . . . . Scanalyzers . | . . . . Garrison Access . | . . . . Data Cores Recovered . | . . . . Used . | . . . . Hacking Detections 5 | . 5 . . Full Trace Events 2 | . 2 . . Feedback Events . | . . . . Feedback Blocked . | . . . . Robot Schematics Acquired . | . . . . Robots Built . | . . . . Authchips . | . . . . Time . | . . . . Total Robot Build Rating . | . . . . Part Schematics Acquired . | . . . . Parts Built . | . . . . Authchips . | . . . . Time . | . . . . Total Part Build Rating . | . . . . Parts Repaired . | . . . . Time . | . . . . Parts Recycled . | . . . . Recycled Matter . | . . . . Retrieved Matter . | . . . . Retrieved Components 6 | . 6 . . Parts Scanalyzed . | . . . . Part Schematics Acquired . | . . . . Parts Damaged . | . . . . Bothacking | -11 -10 -10 -10 ------------ Run | Yrd Mat Min Sub Used RIF Installer . | . . . . Robots Hacked . | . . . . Non-combat . | . . . . Combat . | . . . . Robot Hacks Applied . | . . . . Relay Couplers Released . | . . . . Fabnet Peak Effective % . | . . . . Robots Rewired . | . . . . Allies Hacked . | . . . . Hacks Repelled . | . . . . Allies | -11 -10 -10 -10 -------- Run | Yrd Mat Min Sub Total Allies . | . . . . Largest Group . | . . . . Highest-Rated Group . | . . . . Highest-Rated Ally . | . . . . Total Orders . | . . . . Ally Attacks . | . . . . Total Damage . | . . . . Kills . | . . . . Allies Corrupted . | . . . . Allies Melted . | . . . . Intel | -11 -10 -10 -10 ------- Run | Yrd Mat Min Sub Robot Analysis Total . | . . . . Derelict Logs Recovered 2 | . . 1 1 Drone Launches . | . . . . Drone Recoveries . | . . . . Exploration | -11 -10 -10 -10 ------------- Run | Yrd Mat Min Sub Turns Passed 2496 | 79 1627 626 164 Spaces Moved 882 | 55 589 196 42 Core 5 | 5 . . . Treads . | . . . . Legs 877 | 50 589 196 42 Wheels . | . . . . Hover . | . . . . Flight . | . . . . Fastest Speed 50 | 50 120 260 260 Average Speed 245 | 113 252 260 263 Slowest Speed 400 | 120 400 260 400 Overloaded Moves . | . . . . Propulsion Burnouts . | . . . . Robots Hopped . | . . . . Cave-ins Triggered . | . . . . Exploration Rate (%) 32 | 4 82 39 6 Regions Visited 3 Branch Regions 2 Pre-discovered Areas 1 | . . 1 . Known Exits Taken 1 | . 1 . . Unknown Exits Taken 2 | 1 . 1 . Scrap Searched . | . . . . Spaces Dug . | . . . . Terrain Destroyed . | . . . . Melee . | . . . . Projectile . | . . . . AOE . | . . . . Terrain Rammed . | . . . . Walls Destroyed . | . . . . Machines Disabled . | . . . . Actions | -11 -10 -10 -10 --------- Run | Yrd Mat Min Sub Total 1126 | 70 689 299 68 Wait 133 | . 46 87 . Move 879 | 54 588 195 42 Hop . | . . . . Pick Up 30 | 9 18 3 . Fast Attach 6 | 3 3 . . Attach 5 | 3 1 1 . Detach . | . . . . Swap 8 | . 7 1 . Drop 9 | . 6 3 . Fire 55 | . 20 9 26 Melee . | . . . . Ram . | . . . . Kick 1 | 1 . . . Crush . | . . . . Escape Stasis . | . . . . Rewire . | . . . . Trap . | . . . . Miscellaneous . | . . . . Route ------- -11/Scrapyard -10/Materials (discovered 3 exits: [*Mat x2] / *Min) -10/Mines -10/Subcaves History --------- Turn | Location | Event 2 | -11/Scrapyard | Discovered new exit (range 16) 80 | -11/Scrapyard | Entered Materials 318 | -10/Materials | Build established: Mutant 494 | -10/Materials | Identified exit to Mines 526 | -10/Materials | Discovered new exit (range 19) 1199 | -10/Materials | Discovered new exit (range 15) 1707 | -10/Materials | Entered Mines 1731 | -10/Mines | Learned location of Storage (-9) 2214 | -10/Mines | Discovered new exit (range 12) 2333 | -10/Mines | Entered Subcaves 2333 | -10/Subcaves | Learned Materials stockpile data 2476 | -10/Subcaves | Core integrity fell below 50% 2488 | -10/Subcaves | Core integrity fell below 20% 2497 | -10/Subcaves | Destroyed by WV-J7A(R) with Subdweller Laser Last Messages --------------- AMBIENT_HEAT=-10 GOAL=ESCAPE 02333_ Acquired derelict log, extracted data. Data stored: Materials stockpile data. 02442_ Aluminum Leg destroyed. 02446_ ECM Suite destroyed. 02448_ IF-PI1(R) destroyed. 02448_ Switching to secondary target: WV-J7A(R). 02455_ Subatomizers dissect the Disposable Heat Sink. 02463_ WV-J7A(R) affixes Scrap Shield Fragment to Scrap Shield. 02466_ Subatomizers dissect the Disposable Heat Sink. 02466_ Assault Rifle destroyed. 02472_ WV-J7A(R) affixes Scrap Shield Fragment to Scrap Shield. 02477_ Aluminum Leg destroyed. 02481_ Subatomizers dissect the Disposable Heat Sink. Map ----- +----------------------------------------------------+ | ?????????????????????????????????????????????? | | ?????????????????????????????????????????????? | | ?????????????????????????????????????????????? | | ?????????????????????????????????????????????? | | ?????????????????????????????????????????????? | | ?????????????????????????????????????????????? | | ?????????????????????????????????????????????? | | ????????????????????????????????????????????## | | ????????????????????###??#####??????????#??# # | | ???????????????????## #### ########?? ### # | | ???????????????????# ##? | | ???????????????????# ## | | ??????????????????## ##?# #?? | | ??????????????????# ### ## ##??? | | ??????????????????# #### ### | | ??????????????????## ## ##??## | | ???????????????????## ## ###### | | ????????????????????### ### # ## | | ??????????????????????# #?#####??? | | ??????????????????????#### #????????? | | ???????????????????##### # ##????????? | | ???????????????????# ##?????????? | | ???????????????????## ###??????????? | | ??????????????##???## R!### ##????????????? | | ??????????????# ## !%##?# ##?????????????? | | ?????????????## @ #??"" #??????????????? | | ???????????# #?#"" #?????????????? | | ???????????### ##?"""" ????????????? | | ?????????????# #? ""## ???????????? | | ????????????# ? ""#?" "??????????? | | ????????????# # ????#??""" " ?????????? | | ??????????? ?# #??????? """" ?????????? | | ??????????##??# #????????"""""?????????? | | ?????????????# ??????????????????????? | | ?????????????## ??????????????????????? | | ??????????????## ###??????????????????????? | | ???????????????# ?????????????????????????? | | ???????????????## #?????????????????????????? | | ???????????????? ??????????????????????????? | | ????????????????# ??????????????????????????? | | ????????????????? ???????????????????????????? | | ?????????????????????????????????????????????? | | ?????????????????????????????????????????????? | | ?????????????????????????????????????????????? | | ?????????????????????????????????????????????? | | ?????????????????????????????????????????????? | | ?????????????????????????????????????????????? | | ?????????????????????????????????????????????? | | ?????????????????????????????????????????????? | | ?????????????????????????????????????????????? | +----------------------------------------------------+ Best States ------------- Heat Dissipation 25 Energy Generation 10 Energy Capacity 250 Matter Stores 300 Matter Capacity 300 Sight Range 16 Terrain Scan Density 10 ECM Strength 1 Evasion (%) 55 Item Schematics ----------------- None Robot Schematics ------------------ None Fabricated ------------ Nothing Alien Tech Used ----------------- None Achievements -------------- None Challenges ------------ None Game ------ Seed PulseSurgeShielding Manual? 0 Play Time 00:17:51 Cumulative 19.0 hours Start 2024.08.08 @ 10:41:18 End 2024.08.08 @ 10:58:18 Sessions 1 Manual Loads 0 Difficulty Rogue Special Mode None Game No. 37 Rogue 37 Adventurer 0 Explorer 0 Win Type - Total 0 Types 0/0/0/0/0/0/0/0/0 Lore% 6 Gallery% 11 Achievement% 13 Wizard Run 0 Options --------- Layout 1 ASCII 0 Keyboard 0 Movement Numpad Keybinds 0 Fullscreen 1 Font 32/SmallcapsGlow Map View 50x35 Zoom Use 0% Tactical HUD 1 Map Filters NONE Filters NONE Steam 1 RUN: 318b944c-f3fd-423b-bc90-757fadc06cf8